fUSD/lending_fUSD_20241203
["ID","MTS","AMOUNT","RATE_DAILY","PERIOD"]
[344015504,1733207612132,-982.36,0.00025,120]
[344015505,1733207612168,-294.0171431,0.00025,120]
[344015506,1733207612203,-926.05,0.00025,120]
[344015507,1733207612240,-559.2511648,0.00025,120]
[344015508,1733207612274,-1032.38,0.00025,120]
[344015509,1733207612606,-500.64,0.00025,120]
[344015510,1733207612646,-500.0,0.00025,120]
[344015511,1733207612681,-537.31944899,0.00025,120]
[344015512,1733207612716,-500.0,0.00025,120]
[344015513,1733207612749,-1907.6,0.00025,120]
[344015514,1733207612788,-500.0,0.00025,120]
[344015515,1733207612820,-500.0,0.00025,120]
[344015516,1733207612852,-500.0,0.00025,120]
[344015517,1733207612884,-500.0,0.00025,120]
[344015518,1733207612916,-500.0,0.00025,120]
[344015519,1733207612948,-2177.62,0.00025,120]
[344015520,1733207612984,-507.51113855,0.00025,120]
[344015521,1733207613017,-1539.88,0.00025,120]
[344015522,1733207613054,-820.1,0.00025,120]
[344015523,1733207613089,-500.0,0.00025,120]
[344015524,1733207613124,-725.92,0.00025,120]
[344015525,1733207613160,-500.0,0.00025,120]
[344015526,1733207613200,-500.0,0.00025,120]
[344015527,1733207613239,-1354.99,0.00025,120]
[344015528,1733207613274,-500.0,0.00025,120]
[344015529,1733207613308,-500.0,0.00025,120]
[344015530,1733207613343,-587.53,0.00025,120]
[344015531,1733207613377,-500.0,0.00025,120]
[344015532,1733207613414,-666.26,0.00025,120]
[344015533,1733207613453,-500.0,0.00025,120]
[344015534,1733207613498,-1091.32,0.00025,120]
[344015535,1733207613533,-2010.05,0.00025,120]
[344015536,1733207613567,-1188.44,0.00025,120]
[344015537,1733207613604,-524.63,0.00025,120]
[344015538,1733207613637,-500.0,0.00025,120]
[344015539,1733207613671,-500.0,0.00025,120]
[344015540,1733207613705,-500.0,0.00025,120]
[344015541,1733207613741,-616.18,0.00025,120]
[344015542,1733207613775,-500.0,0.00025,120]
[344015543,1733207613808,-500.0,0.00025,120]
[344015544,1733207613842,-500.0,0.00025,120]
[344015545,1733207613875,-500.0,0.00025,120]
[344015546,1733207613908,-500.0,0.00025,120]
[344015547,1733207613948,-500.0,0.00025,120]
[344015548,1733207613983,-500.0,0.00025,120]
[344015549,1733207614017,-500.0,0.00025,120]
[344015550,1733207614052,-500.0,0.00025,120]
[344015551,1733207614092,-500.0,0.00025,120]
[344015552,1733207614125,-500.0,0.00025,120]
[344015553,1733207614156,-1734.32,0.00025,120]
[344015554,1733207614191,-500.0,0.00025,120]
[344015555,1733207614226,-500.0,0.00025,120]
[344015556,1733207614259,-500.0,0.00025,120]
[344015557,1733207614290,-500.0,0.00025,120]
[344015558,1733207614322,-500.0,0.00025,120]
[344015559,1733207614354,-500.0,0.00025,120]
[344015560,1733207614385,-495.26615218,0.00025,120]
[344015561,1733207614418,-766.88,0.00025,120]
[344015562,1733207614450,-577.76,0.00025,120]
[344015563,1733207614487,-500.0,0.00025,120]
[344015564,1733207614525,-500.0,0.00025,120]
[344015565,1733207614558,-1161.79,0.00025,120]
[344015566,1733207614595,-500.0,0.00025,30]
[344015567,1733207614628,-500.0,0.00025,120]
[344015568,1733207614661,-581.2,0.00025,120]
[344015569,1733207614696,-500.0,0.00025,120]
[344015570,1733207614733,-500.0,0.00025,120]
[344015571,1733207614769,-500.0,0.00025,120]
[344015572,1733207614803,-500.0,0.00025,120]
[344015573,1733207614837,-746.04,0.00025,120]
[344015574,1733207614871,-883.74,0.00025,120]
[344015575,1733207614904,-500.0,0.00025,120]
[344015576,1733207614936,-1306.73,0.00025,120]
[344015577,1733207614970,-700.0,0.00025,120]
[344015578,1733207615006,-500.0,0.00025,120]
[344015579,1733207615043,-1308.07,0.00025,120]
[344015580,1733207615078,-704.69,0.00025,120]
[344015581,1733207615112,-574.86,0.00025,120]
[344015582,1733207615145,-500.0,0.00025,120]
[344015583,1733207615177,-500.0,0.00025,120]
[344015584,1733207615213,-500.0,0.00025,120]
[344015585,1733207615255,-500.0,0.00025,120]
[344015586,1733207615290,-500.0,0.00025,120]
[344015587,1733207615324,-500.0,0.00025,120]
[344015588,1733207615358,-500.0,0.00025,30]
[344015589,1733207615392,-895.49,0.00025,120]
[344015590,1733207615424,-500.0,0.00025,120]
[344015591,1733207615461,-500.0,0.00025,120]
[344015592,1733207615493,-765.68,0.00025,120]
[344015593,1733207615524,-500.0,0.00025,120]
[344015594,1733207615556,-968.26,0.00025,120]
[344015595,1733207615591,-1145.05,0.00025,120]
[344015596,1733207615622,-892.04,0.00025,120]
[344015597,1733207615654,-500.0,0.00025,120]
[344015598,1733207615685,-1022.01,0.00025,60]
[344015599,1733207615718,-500.0,0.00025,120]
[344015600,1733207615751,-500.0,0.00025,120]
[344015601,1733207615782,-1368.93,0.00025,120]
[344015602,1733207615813,-500.0,0.00025,120]
[344015603,1733207615844,-500.0,0.00025,120]
[344015604,1733207616193,-500.0,0.00025,120]
[344015605,1733207616230,-1207.33,0.00025,120]
[344015606,1733207616267,-500.0,0.00025,120]
[344015607,1733207616301,-500.0,0.00025,120]
[344015608,1733207616333,-500.0,0.00025,120]
[344015609,1733207616367,-500.0,0.00025,120]
[344015610,1733207616398,-759.76,0.00025,120]
[344015611,1733207616431,-500.0,0.00025,120]
[344015612,1733207616464,-500.0,0.00025,120]
[344015613,1733207616494,-500.0,0.00025,120]
[344015614,1733207616526,-500.0,0.00025,120]
[344015615,1733207616560,-500.0,0.00025,120]
[344015616,1733207616597,-500.0,0.00025,120]
[344015617,1733207616631,-625.88,0.00025,120]
[344015618,1733207616667,-500.0,0.00025,120]
[344015619,1733207616699,-500.0,0.00025,120]
[344015620,1733207616734,-583.90665124,0.00025,120]
[344015621,1733207616768,-500.0,0.00025,120]
[344015622,1733207616803,-500.0,0.00025,120]
[344015623,1733207616836,-500.0,0.00025,120]
[344015624,1733207616869,-500.0,0.00025,120]
[344015625,1733207616902,-1166.91,0.00025,30]
[344015626,1733207616937,-970.16,0.00025,120]
[344015627,1733207616973,-500.0,0.00025,120]
[344015628,1733207617007,-500.0,0.00025,120]
[344015629,1733207617041,-545.32,0.00025,120]
[344015630,1733207617075,-500.0,0.00025,120]
[344015631,1733207617110,-500.0,0.00025,120]
[344015632,1733207617144,-500.0,0.00025,120]
[344015633,1733207617178,-511.40811185,0.00025,120]
[344015634,1733207617215,-957.11,0.00025,120]
[344015635,1733207617250,-500.0,0.00025,120]
[344015636,1733207617283,-1518.29,0.00025,120]
[344015637,1733207617316,-500.0,0.00025,120]
[344015638,1733207617350,-500.0,0.00025,120]
[344015639,1733207617385,-1154.68,0.00025,120]
[344015640,1733207617420,-1803.31,0.00025,120]
[344015641,1733207617454,-1378.39,0.00025,120]
[344015642,1733207617491,-578.72,0.00025,120]
[344015643,1733207617524,-500.0,0.00025,120]
[344015644,1733207617557,-500.0,0.00025,120]
[344015645,1733207617597,-500.0,0.00025,120]
[344015646,1733207617631,-1117.49,0.00025,120]
[344015647,1733207617664,-500.0,0.00025,120]
[344015648,1733207617697,-500.0,0.00025,120]
[344015649,1733207617731,-500.0,0.00025,120]
[344015650,1733207617767,-537.78,0.00025,120]
[344015651,1733207617800,-500.0,0.00025,120]
[344015652,1733207617838,-500.0,0.00025,120]
[344015653,1733207617872,-500.0,0.00025,120]
[344015654,1733207617904,-1029.36,0.00025,120]
[344015655,1733207617938,-500.0,0.00025,120]
[344015656,1733207617971,-500.0,0.00025,120]
[344015657,1733207618004,-500.0,0.00025,120]
[344015658,1733207618039,-500.0,0.00025,120]
[344015659,1733207618077,-1082.12,0.00025,120]
[344015660,1733207618113,-500.0,0.00025,120]
[344015661,1733207618148,-1233.09,0.00025,120]
[344015662,1733207618183,-500.0,0.00025,120]
[344015663,1733207618218,-500.0,0.00025,120]
[344015664,1733207618252,-337.12540034,0.00025,120]
[344015665,1733207618285,-500.0,0.00025,120]
[344015666,1733207618317,-1287.37,0.00025,120]
[344015667,1733207618356,-500.0,0.00025,120]
[344015668,1733207618391,-500.0,0.00025,120]
[344015669,1733207618426,-500.0,0.00025,120]
[344015670,1733207618463,-500.0,0.00025,120]
[344015671,1733207618497,-500.0,0.00025,120]
[344015672,1733207618532,-526.25498744,0.00025,120]
[344015673,1733207618568,-500.0,0.00025,120]
[344015674,1733207618608,-500.0,0.00025,120]
[344015675,1733207618642,-500.0,0.00025,120]
[344015676,1733207618676,-500.0,0.00025,120]
[344015677,1733207618711,-371.16405735,0.00025,120]
[344015678,1733207618745,-500.0,0.00025,120]
[344015679,1733207618780,-500.0,0.00025,120]
[344015680,1733207618814,-500.0,0.00025,120]
[344015681,1733207618849,-517.41136125,0.00025,120]
[344015682,1733207618883,-500.0,0.00025,120]
[344015683,1733207618916,-765.2,0.00025,120]
[344015684,1733207618951,-500.0,0.00025,120]
[344015685,1733207618987,-500.0,0.00025,120]
[344015686,1733207619023,-500.0,0.00025,120]
[344015687,1733207619059,-500.0,0.00025,120]
[344015688,1733207619093,-500.0,0.00025,120]
[344015689,1733207619128,-211.56877986,0.00025,120]
[344015690,1733207619164,-1311.41,0.00025,120]
[344015691,1733207619199,-500.0,0.00025,120]
[344015692,1733207619234,-2061.89,0.00025,120]
[344015693,1733207619267,-516.90733167,0.00025,120]
[344015694,1733207619301,-500.0,0.00025,120]
[344015695,1733207619336,-903.7,0.00025,120]
[344015696,1733207619370,-683.61,0.00025,120]
[344015697,1733207619404,-500.0,0.00025,120]
[344015698,1733207619438,-500.0,0.00025,120]
[344015699,1733207619470,-500.0,0.00025,120]
[344015700,1733207619777,-714.04,0.00025,120]
[344015701,1733207619812,-500.0,0.00025,120]
[344015702,1733207619847,-841.7,0.00025,120]
[344015703,1733207619886,-517.62,0.00025,120]
[344015704,1733207619925,-500.0,0.00025,120]
[344015705,1733207619967,-500.0,0.00025,120]
[344015706,1733207620003,-500.0,0.00025,120]
[344015707,1733207620040,-1160.81,0.00025,120]
[344015708,1733207620077,-500.0,0.00025,120]
[344015709,1733207620114,-500.0,0.00025,120]
[344015710,1733207620151,-500.0,0.00025,120]
[344015711,1733207620188,-500.0,0.00025,120]
[344015712,1733207620225,-500.0,0.00025,120]
[344015713,1733207620262,-500.0,0.00025,120]
[344015714,1733207620299,-500.0,0.00025,120]
[344015715,1733207620343,-500.0,0.00025,120]
[344015716,1733207620380,-500.0,0.00025,120]
[344015717,1733207620417,-500.0,0.00025,120]
[344015718,1733207620452,-500.0,0.00025,120]
[344015719,1733207620490,-500.0,0.00025,120]
[344015720,1733207620526,-500.0,0.00025,120]
[344015721,1733207620562,-500.0,0.00025,120]
[344015722,1733207620601,-500.0,0.00025,120]
[344015723,1733207620638,-500.0,0.00025,120]
[344015724,1733207620674,-911.18,0.00025,120]
[344015725,1733207620709,-500.0,0.00025,120]
[344015726,1733207620747,-500.0,0.00025,120]
[344015727,1733207620782,-895.63,0.00025,120]
[344015728,1733207620816,-500.0,0.00025,120]
[344015729,1733207620851,-500.0,0.00025,120]
[344015730,1733207620886,-1559.06,0.00025,120]
[344015731,1733207620923,-581.0,0.00025,120]
[344015732,1733207620959,-374.128197,0.00025,120]
[344015733,1733207620999,-631.97,0.00025,120]
[344015734,1733207621038,-1127.05,0.00025,120]
[344015735,1733207621074,-198.105714,0.00025,120]
[344015736,1733207621112,-500.0,0.00025,120]
[344015737,1733207621147,-500.0,0.00025,120]
[344015738,1733207621190,-500.0,0.00025,120]
[344015739,1733207621226,-748.75,0.00025,120]
[344015740,1733207621262,-500.0,0.00025,120]
[344015741,1733207621299,-500.0,0.00025,120]
[344015742,1733207621334,-1024.74,0.00025,120]
[344015743,1733207621370,-263.732209,0.00025,120]
[344015744,1733207621404,-799.79,0.00025,120]
[344015745,1733207621440,-506.01607473,0.00025,120]
[344015746,1733207621477,-500.0,0.00025,120]
[344015747,1733207621512,-1089.52,0.00025,120]
[344015748,1733207621546,-1274.65,0.00025,120]
[344015749,1733207621583,-500.0,0.00025,30]
[344015750,1733207621619,-3046.042417,0.00025,120]
[344015751,1733207621655,-500.0,0.00025,120]
[344015752,1733207621689,-500.0,0.00025,120]
[344015753,1733207621722,-524.57,0.00025,120]
[344015754,1733207621758,-912.68,0.00025,120]
[344015755,1733207621792,-565.49,0.00025,120]
[344015756,1733207621827,-500.0,0.00025,120]
[344015757,1733207621860,-500.0,0.00025,120]
[344015758,1733207621893,-500.0,0.00025,120]
[344015759,1733207621925,-810.96,0.00025,120]
[344015760,1733207621957,-500.0,0.00025,120]
[344015761,1733207621991,-500.0,0.00025,120]
[344015762,1733207622047,-2350.25,0.00025,120]
[344015763,1733207622109,-500.0,0.00025,120]
[344015764,1733207622170,-500.0,0.00025,120]
[344015765,1733207622235,-1847.9,0.00025,120]
[344015766,1733207622291,-837.65,0.00025,120]
[344015767,1733207622351,-1476.9,0.00025,120]
[344015768,1733207622404,-500.0,0.00025,120]
[344015769,1733207622457,-497.89437577,0.00025,120]
[344015770,1733207622522,-512.50702507,0.00025,120]
[344015771,1733207622576,-500.0,0.00025,120]
[344015772,1733207622630,-500.0,0.00025,120]
[344015773,1733207622682,-500.0,0.00025,120]
[344015774,1733207622736,-1394.476857,0.00025,120]
[344015775,1733207622791,-500.0,0.00025,120]
[344015776,1733207622844,-500.0,0.00025,120]
[344015777,1733207622898,-500.0,0.00025,120]
[344015778,1733207622953,-500.0,0.00025,120]
[344015779,1733207623016,-500.0,0.00025,120]
[344015780,1733207623075,-500.0,0.00025,120]
[344015781,1733207623133,-1059.37,0.00025,120]
[344015782,1733207623191,-690.97,0.00025,120]
[344015783,1733207623250,-500.0,0.00025,120]
[344015784,1733207623306,-1265.39,0.00025,120]
[344015785,1733207623361,-2080.48,0.00025,120]
[344015786,1733207623417,-508.75,0.00025,120]
[344015787,1733207623478,-500.0,0.00025,120]
[344015788,1733207623534,-500.0,0.00025,120]
[344015789,1733207623590,-500.0,0.00025,120]
[344015790,1733207623644,-500.11537084,0.00025,120]
[344015791,1733207623698,-500.0,0.00025,120]
[344015792,1733207623754,-500.0,0.00025,120]
[344015793,1733207623808,-880.67,0.00025,120]
[344015794,1733207623862,-500.0,0.00025,120]
[344015795,1733207623915,-500.0,0.00025,120]
[344015796,1733207623972,-1343.98,0.00025,120]
[344015797,1733207624031,-500.0,0.00025,120]
[344015798,1733207624087,-700.97,0.00025,120]
[344015799,1733207624145,-1429.25,0.00025,120]
[344015800,1733207624205,-1047.13,0.00025,120]
[344015801,1733207624265,-1674.46,0.00025,120]
[344015802,1733207624322,-761.26,0.00025,120]
[344015803,1733207624377,-686.85,0.00025,120]
[344015804,1733207624430,-500.0,0.00025,120]
[344015805,1733207624494,-777.01,0.00025,120]
[344015806,1733207624570,-500.0,0.00025,120]
[344015807,1733207624644,-525.14,0.00025,120]
[344015808,1733207624709,-500.0,0.00025,120]
[344015809,1733207624770,-500.0,0.00025,120]
[344015810,1733207624827,-1046.06,0.00025,120]
[344015811,1733207624884,-1724.28,0.00025,120]
[344015812,1733207624941,-2081.8,0.00025,120]
[344015813,1733207624996,-1374.03,0.00025,120]
[344015814,1733207625066,-500.0,0.00025,120]
[344015815,1733207625131,-500.0,0.00025,120]
[344015816,1733207625198,-500.0,0.00025,120]
[344015817,1733207625259,-500.0,0.00025,120]
[344015818,1733207625318,-700.49,0.00025,120]
[344015819,1733207625370,-500.0,0.00025,120]
[344015820,1733207625404,-500.0,0.00025,120]
[344015821,1733207625437,-628.18,0.00025,120]
[344015822,1733207625472,-500.0,0.00025,120]
[344015823,1733207625505,-1375.39,0.00025,120]
[344015824,1733207626146,-500.0,0.00025,120]
[344015825,1733207626284,-500.0,0.00025,120]
[344015826,1733207626322,-1972.76,0.00025,120]
[344015827,1733207626357,-677.2,0.00025,120]
[344015828,1733207626391,-500.0,0.00025,120]
[344015829,1733207626425,-500.0,0.00025,120]
[344015830,1733207626459,-786.11,0.00025,120]
[344015831,1733207626493,-500.0,0.00025,120]
[344015832,1733207626528,-500.0,0.00025,120]
[344015833,1733207626561,-1003.27,0.00025,120]
[344015834,1733207626599,-1367.81,0.00025,120]
[344015835,1733207626632,-500.0,0.00025,120]
[344015836,1733207626665,-500.0,0.00025,120]
[344015837,1733207626698,-500.0,0.00025,120]
[344015838,1733207626732,-1727.2,0.00025,120]
[344015839,1733207626768,-500.0,0.00025,120]
[344015840,1733207626803,-500.0,0.00025,120]
[344015841,1733207626837,-550.02,0.00025,120]
[344015842,1733207626872,-1478.8,0.00025,120]
[344015843,1733207626904,-701.89,0.00025,120]
[344015844,1733207626938,-1642.48,0.00025,120]
[344015845,1733207626973,-1218.04,0.00025,120]
[344015846,1733207627006,-500.0,0.00025,120]
[344015847,1733207627042,-500.0,0.00025,120]
[344015848,1733207627076,-500.0,0.00025,120]
[344015849,1733207627112,-652.41,0.00025,120]
[344015850,1733207627146,-500.0,0.00025,120]
[344015851,1733207627182,-500.0,0.00025,120]
[344015852,1733207627219,-848.08,0.00025,120]
[344015853,1733207627256,-500.0,0.00025,120]
[344015854,1733207627289,-1335.02,0.00025,120]
[344015855,1733207627323,-1052.8,0.00025,120]
[344015856,1733207627356,-2909.92,0.00025,120]
[344015857,1733207627388,-500.0,0.00025,120]
[344015858,1733207627421,-1563.38,0.00025,120]
[344015859,1733207627454,-500.0,0.00025,120]
[344015860,1733207627495,-666.1,0.00025,120]
[344015861,1733207627530,-1064.91,0.00025,120]
[344015862,1733207627566,-500.0,0.00025,120]
[344015863,1733207627603,-1336.08,0.00025,120]
[344015864,1733207627640,-500.0,0.00025,120]
[344015865,1733207627681,-1053.55,0.00025,120]
[344015866,1733207627720,-500.0,0.00025,120]
[344015867,1733207627759,-3527.3,0.00025,120]
[344015868,1733207627797,-641.55,0.00025,120]
[344015869,1733207627832,-500.0,0.00025,120]
[344015870,1733207627870,-500.0,0.00025,120]
[344015871,1733207627905,-500.0,0.00025,120]
[344015872,1733207627943,-632.61,0.00025,120]
[344015873,1733207627981,-500.0,0.00025,120]
[344015874,1733207628020,-500.0,0.00025,120]
[344015875,1733207628058,-500.0,0.00025,120]
[344015876,1733207628096,-500.0,0.00025,120]
[344015877,1733207628137,-735.68,0.00025,120]
[344015878,1733207628177,-500.0,0.00025,120]
[344015879,1733207628215,-1623.86,0.00025,120]
[344015880,1733207628257,-562.2,0.00025,120]
[344015881,1733207628297,-537.58,0.00025,120]
[344015882,1733207628333,-500.0,0.00025,120]
[344015883,1733207628370,-2058.88,0.00025,120]
[344015884,1733207628416,-1354.01,0.00025,120]
[344015885,1733207628456,-1273.98,0.00025,120]
[344015886,1733207628496,-1598.39,0.00025,120]
[344015887,1733207628536,-500.0,0.00025,120]
[344015888,1733207628580,-500.0,0.00025,120]
[344015889,1733207628628,-500.0,0.00025,120]
[344015890,1733207628666,-646.96,0.00025,120]
[344015891,1733207628706,-500.0,0.00025,120]
[344015892,1733207628751,-500.0,0.00025,120]
[344015893,1733207628797,-500.0,0.00025,120]
[344015894,1733207628836,-500.0,0.00025,120]
[344015895,1733207628873,-500.0,0.00025,120]
[344015896,1733207628911,-1491.79,0.00025,120]
[344015897,1733207628953,-500.0,0.00025,120]
[344015898,1733207628996,-999.07,0.00025,120]
[344015899,1733207629038,-500.0,0.00025,120]
[344015900,1733207629080,-2472.79,0.00025,120]
[344015901,1733207629118,-500.0,0.00025,120]
[344015902,1733207629157,-500.0,0.00025,120]
[344015903,1733207629195,-1541.09,0.00025,120]
[344015904,1733207629237,-1126.05,0.00025,120]
[344015905,1733207629277,-500.0,0.00025,120]
[344015906,1733207629317,-500.0,0.00025,120]
[344015907,1733207629356,-517.92344303,0.00025,120]
[344015908,1733207629395,-1264.84,0.00025,120]
[344015909,1733207629434,-1015.03,0.00025,120]
[344015910,1733207629474,-313.75424449,0.00025,120]
[344015911,1733207629513,-1241.64,0.00025,120]
[344015912,1733207629552,-500.0,0.00025,30]
[344015913,1733207629593,-1567.91,0.00025,120]
[344015914,1733207629630,-500.0,0.00025,120]
[344015915,1733207629670,-730.44,0.00025,120]
[344015916,1733207630007,-2404.43,0.00025,120]
[344015917,1733207630055,-500.0,0.00025,120]
[344015918,1733207630092,-542.53,0.00025,120]
[344015919,1733207630129,-1583.7,0.00025,120]
[344015920,1733207630165,-583.44,0.00025,120]
[344015921,1733207630202,-500.0,0.00025,120]
[344015922,1733207630242,-1687.44,0.00025,120]
[344015923,1733207630276,-1050.6,0.00025,120]
[344015924,1733207630309,-500.0,0.00025,120]
[344015925,1733207630344,-607.77,0.00025,120]
[344015926,1733207630379,-3184.43,0.00025,120]
[344015927,1733207630415,-500.0,0.00025,120]
[344015928,1733207630450,-1668.92,0.00025,120]
[344015929,1733207630484,-500.0,0.00025,120]
[344015930,1733207630518,-2156.17,0.00025,120]
[344015931,1733207630553,-500.0,0.00025,120]
[344015932,1733207630588,-500.0,0.00025,120]
[344015933,1733207630623,-500.0,0.00025,120]
[344015934,1733207630658,-500.0,0.00025,120]
[344015935,1733207630690,-500.0,0.00025,120]
[344015936,1733207630726,-500.0,0.00025,120]
[344015937,1733207630759,-1216.64,0.00025,120]
[344015938,1733207630792,-5514.75,0.00025,120]
[344015939,1733207630824,-818.96,0.00025,120]
[344015940,1733207630854,-500.0,0.00025,120]
[344015941,1733207630884,-500.0,0.00025,120]
[344015942,1733207630914,-922.77,0.00025,120]
[344015943,1733207630947,-500.0,0.00025,120]
[344015944,1733207630979,-500.0,0.00025,120]
[344015945,1733207631012,-1141.51,0.00025,120]
[344015946,1733207631047,-649.17,0.00025,120]
[344015947,1733207631083,-500.0,0.00025,120]
[344015948,1733207631119,-2619.24,0.00025,120]
[344015949,1733207631154,-500.0,0.00025,120]
[344015950,1733207631189,-500.0,0.00025,120]
[344015951,1733207631227,-1312.72,0.00025,120]
[344015952,1733207631263,-898.11,0.00025,120]
[344015953,1733207631296,-500.0,0.00025,120]
[344015954,1733207631330,-586.27,0.00025,120]
[344015955,1733207631366,-2976.61,0.00025,120]
[344015956,1733207631401,-1203.53,0.00025,120]
[344015957,1733207631434,-500.0,0.00025,120]
[344015958,1733207631467,-778.32,0.00025,120]
[344015959,1733207631501,-500.0,0.00025,120]
[344015960,1733207631532,-724.32,0.00025,120]
[344015961,1733207631563,-1010.52,0.00025,120]
[344015962,1733207631600,-500.0,0.00025,120]
[344015963,1733207631639,-3176.84,0.00025,120]
[344015964,1733207631675,-500.0,0.00025,120]
[344015965,1733207631709,-1045.4,0.00025,120]
[344015966,1733207631745,-500.0,0.00025,120]
[344015967,1733207631778,-500.0,0.00025,120]
[344015968,1733207631811,-500.0,0.00025,120]
[344015969,1733207631846,-1121.83,0.00025,120]
[344015970,1733207631878,-2477.99,0.00025,120]
[344015971,1733207631910,-617.31,0.00025,120]
[344015972,1733207631944,-500.0,0.00025,120]
[344015973,1733207631979,-3567.98,0.00025,120]
[344015974,1733207632015,-500.0,0.00025,120]
[344015975,1733207632051,-500.0,0.00025,120]
[344015976,1733207632086,-500.0,0.00025,120]
[344015977,1733207632118,-888.05,0.00025,120]
[344015978,1733207632157,-620.97,0.00025,120]
[344015979,1733207632192,-500.0,0.00025,120]
[344015980,1733207632226,-1330.87,0.00025,120]
[344015981,1733207632259,-713.37,0.00025,120]
[344015982,1733207632291,-500.0,0.00025,120]
[344015983,1733207632325,-1744.69,0.00025,120]
[344015984,1733207632359,-500.0,0.00025,120]
[344015985,1733207632393,-500.0,0.00025,120]
[344015986,1733207632427,-1081.89,0.00025,120]
[344015987,1733207632460,-500.0,0.00025,120]
[344015988,1733207632496,-1954.67,0.00025,120]
[344015989,1733207632529,-3036.32,0.00025,120]
[344015990,1733207632568,-500.0,0.00025,120]
[344015991,1733207632607,-3528.08,0.00025,120]
[344015992,1733207632641,-2404.8,0.00025,120]
[344015993,1733207632676,-500.0,0.00025,120]
[344015994,1733207632709,-2304.77,0.00025,120]
[344015995,1733207632750,-702.23,0.00025,120]
[344015996,1733207632785,-500.0,0.00025,120]
[344015997,1733207632817,-2327.37,0.00025,120]
[344015998,1733207632855,-500.0,0.00025,120]
[344015999,1733207632888,-500.0,0.00025,120]
[344016000,1733207632921,-2722.82,0.00025,120]
[344016001,1733207632954,-500.0,0.00025,120]
[344016002,1733207632992,-500.0,0.00025,120]
[344016003,1733207633030,-1564.56,0.00025,120]